Cogmind - Beta 15 @@@ ROGUE MODE // 2025.10.07 @ 21:52:24 Player: weedlord420 Result: Destroyed by GY-EEA(R) with Subdweller Machine Gun Performance ------------- Evolutions (0) 0 Regions Visited (2) 400 Robots Destroyed (15) 75 Value Destroyed (481) 481 Prototype IDs (0) 0 Alien Tech Used (0) 0 Bonus (0) 0 TOTAL SCORE: 956 Bonus ------- None Cogmind --------- Core Integrity 0/250 Matter 300/300 Energy 250/250 System Corruption 0% Temperature Cool (0) Movement Rolling (107) Ox1 Location -10/Subcaves Parts ------- > --- POWER (1) -------- Ion Engine > --- PROPULSION (2) --- Wheel Subdweller Monowheel > --- UTILITY (2) ------ High-capacity Storage Unit Makeshift Light Armor Plating > --- WEAPON (2) ------- Subdweller Beam Cannon Barrage Gun > --- INVENTORY (20) --- Subdweller Power Source Subdweller Power Source Light Treads Spiked Treads Arachnoskeleton Subdweller Monowheel Subdweller Monowheel Subdweller Monowheel Large Storage Unit Structural Scanner Subdweller Optics Core Shielding Riot Gun Subdweller Laser Subdweller Machine Gun Battle Cannon Grenade Launcher Mining Laser Peak State ------------ > --- POWER ------------ Ion Engine > --- PROPULSION ------- Wheel Subdweller Monowheel > --- UTILITY ---------- High-capacity Storage Unit Makeshift Light Armor Plating > --- WEAPON ----------- Subdweller Beam Cannon Barrage Gun > --- INVENTORY -------- Subdweller Power Source Subdweller Power Source Light Treads Spiked Treads Arachnoskeleton Subdweller Monowheel Subdweller Monowheel Subdweller Monowheel Large Storage Unit Structural Scanner Subdweller Optics Core Shielding Riot Gun Subdweller Laser Subdweller Machine Gun Battle Cannon Grenade Launcher Mining Laser [Rating: 19] Favorites ----------- Power Ion Engine Engine Ion Engine Propulsion Wheel Treads Light Treads Wheel Wheel Utility Large Storage Unit Device Structural Scanner Storage Large Storage Unit Protection Makeshift Light Armor Plating Weapon Barrage Gun Energy Gun Medium Laser Energy Cannon Subdweller Beam Cannon Ballistic Gun Barrage Gun Ballistic Cannon Battle Cannon Launcher Grenade Launcher Special Weapon Mining Laser Build | -11 -10 -10 ------- Run | Yrd Mat Sub Slots Evolved . | . . . Power . | . . . Propulsion . | . . . Utility . | . . . Weapon . | . . . Parts Attached 25 | 7 5 13 Power 2 | 1 . 1 Engine 2 | 1 . 1 Core . | . . . Reactor . | . . . Propulsion 7 | 2 1 4 Treads 3 | . . 3 Leg . | . . . Wheel 4 | 2 1 1 Hover . | . . . Flight . | . . . Utility 6 | 1 2 3 Device 1 | . 1 . Storage 3 | 1 1 1 Processor . | . . . Hackware . | . . . Protection 2 | . . 2 Artifact . | . . . Weapon 10 | 3 2 5 Energy Gun 3 | 2 . 1 Energy Cannon 1 | . . 1 Ballistic Gun 3 | 1 . 2 Ballistic Cannon 1 | . . 1 Launcher 1 | . 1 . Special Weapon 1 | . 1 . Impact Weapon . | . . . Slashing Weapon . | . . . Piercing Weapon . | . . . Special Melee Weapon . | . . . Unidentified Prototypes . | . . . Parts Lost 1 | . . 1 Power . | . . . Propulsion 1 | . . 1 Utility . | . . . Weapon . | . . . Highest Loss Streak 1 | . . 1 To Critical Strikes . | . . . Average Backups 12 | 3 9 14 Power 1 | 1 1 1 Propulsion 3 | 1 2 3 Utility 3 | . 2 4 Weapon 5 | . 2 6 Tool/Special . | . . . Unused Backups 18 | . 1 17 Power 3 | . 1 2 Propulsion 6 | . . 6 Utility 4 | . . 4 Weapon 5 | . . 5 Tool/Special . | . . . Average Slot Usage (%) 99 | . 98 99 Engine 14 | . 14 14 Treads 4 | . . 6 Wheel 23 | . 28 21 Device 7 | . 12 5 Storage 14 | . 14 14 Protection 5 | . . 8 Energy Gun 7 | . 14 4 Energy Cannon 1 | . . 1 Ballistic Gun 13 | . 11 14 Ballistic Cannon 3 | . . 4 Launcher 1 | . 1 . Special Weapon 1 | . . 2 Peak Build Rating 19 | 6 8 19 Average Rating 11 | 4 7 12 On Entrance 4 | . 6 8 Naked Turns . | . . . Heaviest Build 60 | 14 31 60 Greatest Support 40 | 26 26 40 Greatest Overweight (x) 5 | . 1 5 Average Overweight (x) 1 | . . 1 Largest Inventory Capacity 20 | 8 15 20 Average Capacity 14 | 7 13 15 Most Carried 20 | 5 13 20 Average Carried 13 | 3 9 15 Final Capacity 20 | 8 15 20 Final Carried 20 | 4 13 20 Class Distribution -------------------- 100% | Mutant Dominant Class ---------------- Mutant | -10/Materials Mutant | -10/Subcaves Resources | -11 -10 -10 ----------- Run | Yrd Mat Sub Matter Collected 1150 | 218 59 873 Remotely . | . . . Salvage Created 444 | . 59 385 Parts 34 | . 9 25 Haulers Intercepted . | . . . Recyclers Shooed . | . . . Parts Field Recycled . | . . . Retrieved Matter . | . . . Parts Self-Destructed 3 | . . 3 Prevented . | . . . Kills | -11 -10 -10 ------- Run | Yrd Mat Sub Combat Hostiles Destroyed 12 | . . 12 Guns 5 | . . 5 Cannons 4 | . . 4 AOE 3 | . . 3 Classes Destroyed 5 | . 2 3 Builder 2 | . 2 . Watcher 1 | . 1 . Swarmer 1 | . . 1 Sentry 1 | . . 1 Subdweller 10 | . . 10 Best Kill Streak 3 | . 2 3 Combat Bots Only 3 | . . 3 Max Kills in Single Turn 2 | . 1 2 Gunslinging . | . . . Exploded 2 | . . 2 Melee . | . . . Uniques/NPCs Destroyed . | . . . Combat | -11 -10 -10 -------- Run | Yrd Mat Sub Hostile Shots Fired 64 | . . 64 Missed 11 | . . 11 Hits 53 | . . 53 Projectile 53 | . . 53 AOE 1 | . . 1 Critical Strikes 2 | . . 2 Damage Taken 1225 | . . 1225 Core 269 | . . 269 Absorbed by Shields . | . . . Redirected to Shielding 18 | . . 18 Core Remaining (%) 100 | 100 . . Volleys Fired 77 | . 9 68 Largest 2 | . 2 2 Hottest 108 | . 100 108 Shots Fired 135 | . 14 121 Gun 86 | . 10 76 Cannon 29 | . . 29 Launcher 7 | . 3 4 Special 13 | . 1 12 Kinetic 75 | . 5 70 Thermal 53 | . 6 47 Explosive 7 | . 3 4 Electromagnetic . | . . . Robot Hit Streak 27 | . 5 27 Robot Miss Streak 2 | . 1 2 Penetration Max . | . . . Secondary Targets . | . . . Shots Hit Robots 93 | . 8 85 Core Hits 25 | . 4 21 Critical Kills . | . . . Critical Parts Destroyed . | . . . Critical Strikes 1 | . . 1 Burn 1 | . . 1 Melee Attacks . | . . . Impact . | . . . Slashing . | . . . Piercing . | . . . Sneak Attacks . | . . . Combat Hostiles . | . . . Follow-up Attacks . | . . . Damage Inflicted 1645 | . 110 1535 Guns 988 | . 110 878 Cannons 490 | . . 490 Explosions 167 | . . 167 Melee . | . . . Ramming . | . . . Kinetic 958 | . 60 898 Thermal 520 | . 50 470 Explosive 167 | . . 167 Electromagnetic . | . . . Impact . | . . . Slashing . | . . . Piercing . | . . . Highest Corruption . | . . . Average Corruption . | . . . Corruption Purged . | . . . Corruption Blocked . | . . . Overload Shots . | . . . Overflow Damage . | . . . Projectiles . | . . . Explosions . | . . . Melee . | . . . Knockbacks 5 | . . 5 Impact . | . . . Kinetic 4 | . . 4 Secondary 1 | . . 1 Self-Inflicted Damage . | . . . Shots . | . . . Rammed . | . . . Targets Rammed . | . . . Kicked . | . . . Crushed . | . . . Highest Temperature 103 | . 20 103 Average Temperature 32 | . 8 42 Received Heat Transfer 201 | . . 201 Siege Activations . | . . . Martial Activations . | . . . Shielding Activations . | . . . Robots Disrupted . | . . . Combat Hostiles . | . . . Robots Corrupted . | . . . Combat Hostiles . | . . . Parts Fried . | . . . Impact Corruptions . | . . . Robots Melted . | . . . Combat Hostiles . | . . . Parts Melted . | . . . Heat Transferred 1185 | . 148 1037 Parts Sabotaged . | . . . Parts Stolen . | . . . Parts Stripped . | . . . Power Chain Reactions . | . . . Alert | -11 -10 -10 ------- Run | Yrd Mat Sub Maximum Alert Level . | . . . Low Security (%) 100 | 100 100 . Level 1 . | . . . Level 2 . | . . . Level 3 . | . . . Level 4 . | . . . Level 5 . | . . . High Security . | . . . Max Security . | . . . Peak Influence 14 | . 14 . Initial . | . . . Average . | . . . Influence Increases 82 | . 42 40 Destroy 0b10 Robot/C 40 | . . 40 Destroy 0b10 Robot/NC 15 | . 15 . Destroy Leader 2 | . 2 . Successful Hack 11 | . 11 . Destroy Structure 14 | . 14 . Influence Decreases 82 | . 42 40 Time Decay 82 | . 42 40 Squads Dispatched . | . . . Investigation . | . . . Extermination . | . . . Reinforcement . | . . . Assault . | . . . Garrison . | . . . Intercept . | . . . Searches Triggered . | . . . Construction Impeded . | . . . Haulers Reinforced . | . . . Active Scanning Responses . | . . . Cargo Convoy Interrupts . | . . . Stealth | -11 -10 -10 --------- Run | Yrd Mat Sub Distress Signals . | . . . Communications Jammed . | . . . Distress Signals . | . . . Times Spotted 17 | . 3 14 Peak Tracking Total 3 | . 1 3 Tactical Retreats . | . . . Traps | -11 -10 -10 ------- Run | Yrd Mat Sub Traps Triggered 2 | . . 2 Indirectly . | . . . Trap Hack Attempts . | . . . Triggered . | . . . Disarmed . | . . . Reprogrammed . | . . . Reused . | . . . Traps Extracted . | . . . Installed . | . . . Triggered . | . . . Most Traps Carried 1 | . . 1 Machines | -11 -10 -10 ---------- Run | Yrd Mat Sub Machines Disabled . | . . . Max in Single Turn . | . . . Machines Repaired . | . . . Machines Dismantled . | . . . Machines Sabotaged . | . . . Overloaded Fab Kills . | . . . Hacking | -11 -10 -10 --------- Run | Yrd Mat Sub Machines Accessed 3 | . 3 . Terminals 3 | . 3 . Fabricators . | . . . Repair Stations . | . . . Recycling Units . | . . . Scanalyzers . | . . . Garrison Access . | . . . Total Hacks 7 | . 7 . Successful 3 | . 3 . Failed 4 | . 4 . Catastrophic 1 | . 1 . Database Lockouts . | . . . Manual 5 | . 5 . Terminals 7 | . 7 . Fabricators . | . . . Repair Stations . | . . . Recycling Units . | . . . Scanalyzers . | . . . Garrison Access . | . . . Terminal Hacks 2 | . 2 . Robot Analysis 1 | . 1 . Terminal Index 1 | . 1 . Fabricator Hacks . | . . . Repair Station Hacks . | . . . Recycling Unit Hacks . | . . . Scanalyzer . | . . . Garrison Access Hacks . | . . . Unauthorized Hacks 1 | . 1 . Terminals 1 | . 1 . Operators 1 | . 1 . Fabricators . | . . . Repair Stations . | . . . Recycling Units . | . . . Scanalyzers . | . . . Garrison Access . | . . . Data Cores Recovered . | . . . Used . | . . . Hacking Detections 2 | . 2 . Full Trace Events . | . . . Feedback Events . | . . . Feedback Blocked . | . . . Robot Schematics Acquired . | . . . Robots Built . | . . . Authchips . | . . . Time . | . . . Total Robot Build Rating . | . . . Part Schematics Acquired . | . . . Parts Built . | . . . Authchips . | . . . Time . | . . . Total Part Build Rating . | . . . Parts Repaired . | . . . Time . | . . . Parts Recycled . | . . . Recycled Matter . | . . . Retrieved Matter . | . . . Retrieved Components . | . . . Parts Scanalyzed . | . . . Part Schematics Acquired . | . . . Parts Damaged . | . . . Bothacking | -11 -10 -10 ------------ Run | Yrd Mat Sub Used RIF Installer . | . . . Robots Hacked . | . . . Non-combat . | . . . Combat . | . . . Robot Hacks Applied . | . . . Relay Couplers Released . | . . . Fabnet Peak Effective % . | . . . Robots Rewired . | . . . Allies Hacked . | . . . Hacks Repelled . | . . . Allies | -11 -10 -10 -------- Run | Yrd Mat Sub Total Allies . | . . . Largest Group . | . . . Highest-Rated Group . | . . . Highest-Rated Ally . | . . . Total Orders . | . . . Ally Attacks . | . . . Total Damage . | . . . Kills . | . . . Allies Corrupted . | . . . Allies Melted . | . . . Intel | -11 -10 -10 ------- Run | Yrd Mat Sub Active Infowar (turns) 1230 | . 539 691 Structural 1230 | . 539 691 Robot Analysis Total 1 | . 1 . Derelict Logs Recovered 2 | . . 2 Drone Launches . | . . . Drone Recoveries . | . . . Exploration | -11 -10 -10 ------------- Run | Yrd Mat Sub Turns Passed 2250 | 47 581 1622 Spaces Moved 1669 | 39 531 1099 Core 11 | 11 . . Treads 106 | . . 106 Legs . | . . . Wheels 1552 | 28 531 993 Hover . | . . . Flight . | . . . Fastest Speed 50 | 50 80 95 Average Speed 101 | 78 92 107 Slowest Speed 240 | 90 95 240 Overloaded Moves . | . . . Propulsion Burnouts . | . . . Robots Hopped . | . . . Potential Cave-ins . | . . . Cave-ins Triggered . | . . . Exploration Rate (%) 42 | 3 64 59 Regions Visited 2 Branch Regions 1 Pre-discovered Areas 1 | . . 1 Known Exits Taken . | . . . Unknown Exits Taken 2 | 1 1 . Scrap Searched 9 | . . 9 Spaces Dug 29 | . 22 7 Terrain Destroyed 48 | . 22 26 Melee . | . . . Projectile 2 | . . 2 AOE 46 | . 22 24 Terrain Rammed . | . . . Walls Destroyed . | . . . Machines Disabled . | . . . Actions | -11 -10 -10 --------- Run | Yrd Mat Sub Total 2044 | 53 605 1386 Wait 176 | . 47 129 Move 1667 | 38 530 1099 Hop . | . . . Pick Up 44 | 8 11 25 Fast Attach 2 | 2 . . Attach 6 | 4 1 1 Detach . | . . . Swap 51 | 1 5 45 Drop 21 | . 2 19 Fire 77 | . 9 68 Melee . | . . . Ram . | . . . Kick . | . . . Crush . | . . . Escape Stasis . | . . . Rewire . | . . . Trap . | . . . Miscellaneous . | . . . Route ------- -11/Scrapyard -10/Materials (discovered 3 exits: [*Mat] / [*Min] / [*Sub]) -10/Subcaves (discovered 2 exits: [*Mat] / [Rec]) History --------- Turn | Location | Event 26 | -11/Scrapyard | Discovered new exit (range 14) 48 | -11/Scrapyard | Entered Materials 143 | -10/Materials | Discovered new exit (range 6) 203 | -10/Materials | Discovered new exit (range 14) 311 | -10/Materials | Build established: Mutant 341 | -10/Materials | Discovered new exit (range 15) 629 | -10/Materials | Entered Subcaves 645 | -10/Subcaves | Learned location of Zion (-7) 690 | -10/Subcaves | Discovered new exit (range 7) 854 | -10/Subcaves | Shifting Twisted Machinery released Barrage Gun 862 | -10/Subcaves | Shifting Twisted Machinery released Battle Cannon 1155 | -10/Subcaves | Learned Materials stockpile data 1470 | -10/Subcaves | Core integrity fell below 50% 1518 | -10/Subcaves | Shifting Twisted Machinery released Sub. Beam Cannon 1646 | -10/Subcaves | Discovered new exit (range 12) 1657 | -10/Subcaves | Disturbed a concealed Subdweller 1899 | -10/Subcaves | A Subdweller sparked back to life 1899 | -10/Subcaves | A Subdweller sparked back to life 1926 | -10/Subcaves | Found Prototype Leg 2096 | -10/Subcaves | Disturbed a concealed Subdweller 2100 | -10/Subcaves | Core integrity fell below 20% 2251 | -10/Subcaves | Destroyed by GY-EEA(R) with Subdweller Machine Gun Last Messages --------------- 02144_ Found Spk. Treads. 02144_ Found Sub. Monowheel. 02144_ Found 41 Matter. 02145_ Acquired 19 matter. 02147_ Acquired Sub. Monowheel. 02150_ Acquired Spk. Treads. 02154_ Searching scrap... 02154_ Found Riot Gun. 02154_ Found 64 Matter. 02157_ Acquired Riot Gun. 02158_ Searching scrap... 02158_ Found Flamer. 02158_ Found 35 Matter. 02159_ Searching scrap... 02159_ Found Sub. Monowheel. 02159_ Found 67 Matter. 02163_ Acquired Sub. Monowheel. 02239_ Triggered Piercing Trap. 02239_ Spikes shoot up from the floor. 02239_ Critical hit (Impale). Map ----- +----------------------------------------------------+ | ##### ######& #######???????? | | ### ## ########## ###???????? | | ### ## ##### " ### ####?????? | | #### #### "### #### ####???? | | ##### ### "!# # ####? ##???? | | "### ###" " &[ =# #####??? #???? | | "" " ## ### [&&&[& ###??????????? | | "" ## ######%*&! ##??????????? | | """" ### #### % && ######??????????? | | " ##### ##??##/&# ######??????????? | | ###?#####???###### ###??????????????? | | " #######???###????????## ##??????????????? | | ###########???????????????### ##??????????????? | | #######???????????????????## ##??????????????? | | ## ###????????????????????### ##??????????????? | | " ##????????????????????### ###?##########???? | | ####???????????????????### ##### ###### ##?? | | #####??????????????####?### # ##? | | ###???????????????######## # ## | | ###???????????????### #### | | ####???????????????## ### ## | | ####???????????????### ### ### | | ####???????????????### ######### | | #####?????????????## ####?###### | | #####????????????## ####??????# | | ###????????????## @###????????## | | # ##????????????## ###???####### # #### | | ## ###????????????### #######"######### ##?? | | ## ###????????????## #######![## ##### #### | | # ###????????????## ## [ #### #### | | ## ##????????????## ### ][& ## # | | # ###????????????## ### %### # | | # ##????????????### ####### ##"|"# | | ## ##????????????### ^####### #"%""# " | | ##?????????????## ##?### #%" %# " | | ##?????????????## ###### #""### """ | | ####????????????###^RR###### #### ## #### | | #####????????????### # # ##### ""#### | | #####????????????## ^ ##### ###? | | ###????????????### #####?## "##? | | ####??????????####^ # ## #####??##""##? | | #######??????????###^ ### ##??????##"##? | | ## ###???????????##^ #### ####??????#####? | | ##???????????## #### #####???????????? | | ###?#####????###### ####?????????????? | | ## ## ######??####### ######??????????????? | | ### ##??????#########???????????????? | | ### ##???????####???????????????????? | | ## #### #####??????????????????????????????? | | ###################??????????????????????????????? | +----------------------------------------------------+ Best States ------------- Heat Dissipation 25 Energy Generation 10 Energy Capacity 250 Matter Stores 300 Matter Capacity 300 Sight Range 16 Terrain Scan Density 10 Armor Coverage 100 Core Shielding 20 Evasion (%) 50 Recoil Reduction 2 Item Schematics ----------------- None Robot Schematics ------------------ None Fabricated ------------ Nothing Repaired ---------- Nothing Alien Tech Used ----------------- None Achievements -------------- None Challenges ------------ None Game ------ Seed ImprovedAlphaProcessor Manual? 0 Play Time 00:20:16 Cumulative 99.3 hours Start 2025.10.07 @ 21:36:10 End 2025.10.07 @ 21:52:24 Sessions 1 Manual Loads 0 Difficulty Rogue Special Mode None Game No. 158 Rogue 157 Adventurer 1 Explorer 0 Win Type - Total 1 Types 0/0/0/1/0/0/0/0/0/0 Lore% 55 Gallery% 52 Achievement% 49 Wizard Run 0 Options --------- Layout 1 ASCII 0 Keyboard 0 Movement Mouse Keybinds 0 Fullscreen 1 Font 24/Smallcaps Map View 50x35 Zoom Use 0% Tactical HUD 1 Map Filters NONE Filters NONE Steam 1 RUN: 9e9a8621-f987-4fdc-83d3-75b33bbc50d2